fUSD/lending_fUSD_20260322
["ID","MTS","AMOUNT","RATE_DAILY","PERIOD"]
[408712176,1774164662137,-500.0,0.00022,2]
[408712177,1774164662146,-700.0,0.00022,2]
[408712178,1774164662155,-500.0,0.00022,2]
[408712179,1774164662165,-500.0,0.00022,2]
[408712180,1774164662174,-500.0,0.00022,2]
[408712181,1774164662184,-500.0,0.00022,2]
[408712182,1774164662193,-500.0,0.00022,2]
[408712183,1774164662202,-500.0,0.00022,2]
[408712184,1774164662212,-500.0,0.00022,2]
[408712185,1774164662221,-500.0,0.00022,2]
[408712186,1774164662230,-500.0,0.00022,2]
[408712187,1774164662239,-500.0,0.00022,2]
[408712188,1774164662248,-500.0,0.00022,2]
[408712189,1774164662257,-500.0,0.00022,2]
[408712190,1774164662266,-500.0,0.00022,2]
[408712191,1774164662275,-500.0,0.00022,2]
[408712192,1774164662284,-500.0,0.00022,2]
[408712193,1774164662293,-500.0,0.00022,2]
[408712194,1774164662302,-265.605188,0.00022,2]
[408712195,1774164662310,-265.605188,0.00022,2]
[408712196,1774164662320,-265.605188,0.00022,2]
[408712197,1774164662329,-265.605188,0.00022,2]
[408712198,1774164662337,-290.0,0.00022,2]
[408712199,1774164662346,-372890.51254273,0.00022,4]
[408712200,1774164662356,-164.92,0.00022,2]
[408712201,1774164662366,-160.0,0.00022,2]
[408712202,1774164662375,-174.0,0.00022,3]
[408712203,1774164662384,-153.0,0.00022,3]
[408712204,1774164662396,-164.0,0.00022,3]
[408712205,1774164662405,-198.321559,0.0002205,14]
[408712206,1774164662414,-280.239426,0.0002208,14]
[408712207,1774164662423,-497.94863005,0.000221,2]
[408712208,1774164662435,-241.99217464,0.0002211,2]
[408712209,1774164662445,-171.26,0.00022178,2]
[408712210,1774164662455,-296.0,0.00022251,2]
[408712211,1774164662465,-172.6,0.00022251,2]
[408712212,1774164662474,-364.09,0.00022251,2]
[408712213,1774164662483,-185.2,0.00022251,2]
[408712214,1774164662492,-824.87,0.0002235,2]
[408712215,1774164662501,-250.0,0.00022466,2]
[408712216,1774164662511,-750.0,0.00022466,2]
[408712217,1774164662520,-750.0,0.00022466,2]
[408712218,1774164662530,-400.0,0.0002247,2]
[408712219,1774164662540,-35756.15304404,0.000225,2]
[408712220,1774164662549,-600.0,0.00022576,7]
[408712221,1774164662558,-3630.65464719,0.000226,2]
[408712222,1774164662568,-527.01600993,0.0002271,2]
[408712223,1774164662577,-418.943485,0.00022782,2]
[408712224,1774164662587,-418.943485,0.00022782,2]
[408712225,1774164662597,-418.943485,0.00022782,2]
[408712226,1774164662606,-418.943485,0.00022782,2]
[408712227,1774164662616,-4160.67,0.00022782,2]
[408712228,1774164662626,-1765.2168,0.000228,2]
[408712229,1774164662635,-501.0,0.00022877,2]
[408712230,1774164662645,-2000.0,0.000229,2]
[408712231,1774164662655,-151.0,0.000229,2]
[408712232,1774164662664,-151.0,0.000229,2]
[408712233,1774164662673,-151.0,0.000229,2]
[408712234,1774164662682,-151.0,0.000229,2]
[408712235,1774164662691,-151.0,0.000229,2]
[408712236,1774164662700,-468.464454,0.000229,2]
[408712237,1774164662709,-468.464454,0.000229,2]
[408712238,1774164662719,-468.464454,0.000229,2]
[408712239,1774164662728,-468.464455,0.000229,2]
[408712240,1774164662737,-910.0,0.00022905,2]
[408712241,1774164662746,-290.0,0.00023,2]
[408712242,1774164662756,-450.0,0.00023,2]
[408712243,1774164662765,-305949.52376883,0.00023,2]
[408712244,1774164662775,-2347.79767241,0.00023,2]
[408712245,1774164662784,-979.16666667,0.00023,3]
[408712246,1774164662793,-150.19588143,0.00023014,2]
[408712247,1774164662803,-212.91531025,0.00023014,2]
[408712248,1774164662813,-850.0,0.00023014,2]
[408712249,1774164662823,-1004.30383102,0.0002314,2]
[408712250,1774164662832,-1504.18,0.0002314,2]
[408712251,1774164662842,-965.28428566,0.000232,2]
[408712252,1774164662851,-1000.0,0.00023288,2]
[408712253,1774164662860,-700.0,0.00023398,7]
[408712254,1774164662870,-950.0,0.00023562,2]
[408712255,1774164662880,-168.18,0.00023569,2]
[408712256,1774164662890,-525.76,0.00023639,2]
[408712257,1774164662900,-180.55,0.00023639,2]
[408712258,1774164662910,-226.14,0.00023639,2]
[408712259,1774164662920,-342.69,0.00023639,2]
[408712260,1774164662929,-876.33,0.00023639,2]
[408712261,1774164662938,-156.58,0.00023639,2]
[408712262,1774164662948,-700.0,0.00023672,7]
[408712263,1774164662957,-1460.56,0.000237,7]
[408712264,1774164663052,-371180.3,0.000237,7]
[408712265,1774164663063,-3304.38,0.000237,7]
[408712266,1774164663072,-151.0,0.000237,2]
[408712267,1774164663082,-151.0,0.000237,2]
[408712268,1774164663091,-158.696008,0.000237,2]
[408712269,1774164663101,-158.696008,0.000237,2]
[408712270,1774164663110,-158.696008,0.000237,2]
[408712271,1774164663120,-158.696016,0.000237,2]
[408712272,1774164663129,-151.0,0.000237,2]
[408712273,1774164663138,-151.0,0.000237,2]
[408712274,1774164663148,-151.0,0.000237,2]
[408712275,1774164663157,-2358.65,0.000238,7]
[408712276,1774164663166,-183.95,0.000239,7]
[408712277,1774164663176,-1253.33,0.000239,7]
[408712278,1774164663185,-7279.16,0.000239,2]
[408712279,1774164663194,-248.111645,0.00023961,14]
[408712280,1774164663204,-979.16666667,0.00024,7]
[408712281,1774164663213,-290.0,0.00024,2]
[408712282,1774164663223,-1029.33150852,0.00024,2]
[408712283,1774164663233,-3600.0,0.00024,2]
[408712284,1774164663242,-1244.50974399,0.00024,2]
[408712285,1774164663252,-1345.0,0.00024012,2]
[408712286,1774164663262,-2466.0,0.00024012,2]
[408712287,1774164663272,-621.0,0.00024012,2]
[408712288,1774164663281,-1050.0,0.0002411,2]
[408712289,1774164663290,-2321.4829,0.000242,2]
[408712290,1774164663299,-425.18257936,0.0002421,2]
[408712291,1774164663309,-3724.81717117,0.0002421,2]
[408712292,1774164663319,-2949.78,0.00024322,2]
[408712293,1774164663329,-1949.06,0.00024322,2]
[408712294,1774164663338,-180.08008904,0.00024487,2]
[408712295,1774164663348,-824.87,0.00024513,2]
[408712296,1774164663358,-166.34482674,0.0002455,15]
[408712297,1774164663367,-1500.0,0.00024658,2]
[408712298,1774164663376,-1031.49225906,0.00024658,2]
[408712299,1774164663385,-1000.0,0.00024658,2]
[408712300,1774164663397,-151.0,0.00024658,2]
[408712301,1774164663407,-151.0,0.00024658,2]
[408712302,1774164663417,-151.0,0.00024658,2]
[408712303,1774164663426,-151.0,0.00024658,2]
[408712304,1774164663436,-151.0,0.00024658,2]
[408712305,1774164663445,-159.924459,0.00024658,2]
[408712306,1774164663455,-151.0,0.00024658,2]
[408712307,1774164663464,-151.0,0.00024658,2]
[408712308,1774164663476,-151.0,0.00024658,2]
[408712309,1774164663485,-151.0,0.00024658,2]
[408712310,1774164663495,-151.0,0.00024658,2]
[408712311,1774164663504,-158.738289,0.00024658,2]
[408712312,1774164663514,-150.0,0.00024658,2]
[408712313,1774164663523,-150.0,0.00024661,2]
[408712314,1774164663532,-1261.0,0.00024661,2]
[408712315,1774164663542,-1215.0,0.00024661,2]
[408712316,1774164663551,-924.0,0.00024661,2]
[408712317,1774164663560,-600.0,0.00024768,7]
[408712318,1774164663570,-8686.08,0.00024819,2]
[408712319,1774164663579,-109156.8,0.00024819,2]
[408712320,1774164663589,-188.762456,0.000249,2]
[408712321,1774164663598,-188.762456,0.000249,2]
[408712322,1774164663609,-188.762456,0.000249,2]
[408712323,1774164663619,-188.762456,0.000249,2]
[408712324,1774164663629,-14391.5038717,0.000249,3]
[408712325,1774164663638,-151.0,0.00024997,7]
[408712326,1774164663648,-2172.66122797,0.00025,7]
[408712327,1774164663657,-151.0,0.00025,2]
[408712328,1774164663667,-151.0,0.00025,2]
[408712329,1774164663676,-290.0,0.00025,2]
[408712330,1774164663685,-500.0,0.00025,2]
[408712331,1774164663695,-1120.33650843,0.00025,2]
[408712332,1774164663703,-208.7069884,0.00025,2]
[408712333,1774164663713,-1795.14734829,0.00025,2]
[408712334,1774164663723,-2000.0,0.00025,2]
[408712335,1774164663732,-540.0,0.00025,2]
[408712336,1774164663742,-614.34436897,0.00025,2]
[408712337,1774164663751,-3060.91976834,0.00025,2]
[408712338,1774164663760,-7166.50900474,0.00025,2]
[408712339,1774164663769,-2212.63881346,0.00025,2]
[408712340,1774164663779,-168.26487336,0.00025,2]
[408712341,1774164663788,-3811.95190912,0.00025,2]
[408712342,1774164663797,-171.26,0.00025178,2]
[408712343,1774164663807,-371180.3,0.000252,7]
[408712344,1774164663816,-151.0,0.000252,2]
[408712345,1774164663826,-500.0,0.0002526,2]
[408712346,1774164663835,-49818.37136664,0.0002539,2]
[408712347,1774164663844,-500.0,0.00025425,2]
[408712348,1774164663853,-700.0,0.0002559,7]
[408712349,1774164663863,-3053.0429,0.000256,2]
[408712350,1774164663873,-700.0,0.00025864,7]
[408712351,1774164663883,-150.0,0.0002589,2]
[408712352,1774164663892,-604.4050922,0.0002599,2]
[408712353,1774164663906,-5000.0,0.00026,7]
[408712354,1774164663916,-290.0,0.00026,2]
[408712355,1774164663925,-500.0,0.00026,120]
[408712356,1774164663934,-4549.42191131,0.00026,2]
[408712357,1774164663944,-217.74931528,0.00026,2]
[408712358,1774164663953,-2000.0,0.00026027,2]
[408712359,1774164663962,-2358.65,0.000261,7]
[408712360,1774164663972,-3304.38,0.000261,7]
[408712361,1774164663981,-2992.08721445,0.00026201,39]
[408712362,1774164663990,-1460.56,0.000263,7]
[408712363,1774164663999,-211.46,0.000263,7]
[408712364,1774164664009,-7279.16,0.000263,2]
[408712365,1774164664018,-1253.33,0.000264,7]
[408712366,1774164664027,-27651.78104651,0.000264,2]
[408712367,1774164664036,-2106.98,0.0002643,2]
[408712368,1774164664046,-77969.14,0.0002643,2]
[408712369,1774164664055,-2000.0,0.000266,2]
[408712370,1774164664065,-824.87,0.00026676,2]
[408712371,1774164664074,-600.0,0.0002696,7]
[408712372,1774164664083,-294.44068711,0.00027,2]
[408712373,1774164664093,-550.0,0.00027,2]
[408712374,1774164664102,-250.0,0.00027,2]
[408712375,1774164664111,-1040.88410247,0.00027,2]
[408712376,1774164664121,-530.0,0.00027,2]
[408712377,1774164664130,-4015.1367,0.00027,2]
[408712378,1774164664140,-1345.0,0.00027012,2]
[408712379,1774164664149,-2466.0,0.00027012,2]
[408712380,1774164664159,-621.0,0.00027012,2]
[408712381,1774164664168,-150.0,0.00027185,2]
[408712382,1774164664178,-371180.3,0.000272,7]
[408712383,1774164664187,-265.605188,0.000272,2]
[408712384,1774164664197,-265.605188,0.000272,2]
[408712385,1774164664206,-265.605188,0.000272,2]
[408712386,1774164664216,-265.605181,0.000272,2]
[408712387,1774164664225,-521.0,0.000272,13]
[408712388,1774164664235,-4136.89682918,0.0002739,2]
[408712389,1774164664244,-8172.55086516,0.0002739,2]
[408712390,1774164664253,-400.0,0.00027397,2]
[408712391,1774164664262,-400.0,0.00027397,2]
[408712392,1774164664271,-376.0,0.00027397,2]
[408712393,1774164664280,-400.0,0.00027397,2]
[408712394,1774164664290,-268.0,0.00027397,2]
[408712395,1774164664300,-350.0,0.00027397,2]
[408712396,1774164664309,-350.0,0.00027397,2]
[408712397,1774164664319,-247.0,0.00027397,2]
[408712398,1774164664329,-2500.0,0.00027397,2]
[408712399,1774164664338,-300.0,0.00027397,2]
[408712400,1774164664348,-180.0,0.00027397,2]
[408712401,1774164664357,-180.0,0.00027397,2]
[408712402,1774164664367,-180.0,0.00027397,2]
[408712403,1774164664377,-180.0,0.00027397,2]
[408712404,1774164664387,-180.0,0.00027397,2]
[408712405,1774164664478,-180.0,0.00027397,2]
[408712406,1774164664488,-180.0,0.00027397,2]
[408712407,1774164664498,-180.0,0.00027397,2]
[408712408,1774164664507,-180.0,0.00027397,2]
[408712409,1774164664517,-180.0,0.00027397,2]
[408712410,1774164664526,-180.0,0.00027397,2]
[408712411,1774164664536,-180.0,0.00027397,2]
[408712412,1774164664546,-180.0,0.00027397,2]
[408712413,1774164664555,-180.0,0.00027397,2]
[408712414,1774164664565,-180.0,0.00027397,2]
[408712415,1774164664576,-180.0,0.00027397,2]
[408712416,1774164664587,-180.0,0.00027397,2]
[408712417,1774164664596,-180.0,0.00027397,2]
[408712418,1774164664606,-180.0,0.00027397,2]
[408712419,1774164664615,-180.0,0.00027397,2]
[408712420,1774164664626,-1000.0,0.00027397,20]
[408712421,1774164664636,-300.46133896,0.00027397,2]
[408712422,1774164664646,-315.367402,0.00027397,2]
[408712423,1774164664656,-315.367402,0.00027397,2]
[408712424,1774164664666,-315.367402,0.00027397,2]
[408712425,1774164664676,-315.367402,0.00027397,2]
[408712426,1774164664686,-315.367402,0.00027397,2]
[408712427,1774164664696,-315.367402,0.00027397,2]
[408712428,1774164664706,-315.367402,0.00027397,2]
[408712429,1774164664716,-315.367402,0.00027397,2]
[408712430,1774164664726,-315.367402,0.00027397,2]
[408712431,1774164664735,-315.367402,0.00027397,2]
[408712432,1774164664745,-315.367402,0.00027397,2]
[408712433,1774164664756,-315.367402,0.00027397,2]
[408712434,1774164664766,-315.367402,0.00027397,2]
[408712435,1774164664776,-315.367402,0.00027397,2]
[408712436,1774164664786,-315.367402,0.00027397,2]
[408712437,1774164664796,-315.367402,0.00027397,2]
[408712438,1774164664806,-315.367402,0.00027397,2]
[408712439,1774164664815,-315.367402,0.00027397,2]
[408712440,1774164664824,-315.367402,0.00027397,2]
[408712441,1774164664835,-315.367409,0.00027397,2]
[408712442,1774164664845,-1440.814673,0.00027397,2]
[408712443,1774164664855,-1440.814673,0.00027397,2]
[408712444,1774164664864,-1440.814673,0.00027397,2]
[408712445,1774164664874,-1440.814673,0.00027397,2]
[408712446,1774164664883,-1440.814673,0.00027397,2]
[408712447,1774164664892,-1440.814673,0.00027397,2]
[408712448,1774164664902,-1440.814673,0.00027397,2]
[408712449,1774164664912,-1440.814673,0.00027397,2]
[408712450,1774164664923,-1440.814673,0.00027397,2]
[408712451,1774164664934,-1440.814673,0.00027397,2]
[408712452,1774164664945,-1440.814673,0.00027397,2]
[408712453,1774164664954,-1440.814673,0.00027397,2]
[408712454,1774164664964,-1440.814673,0.00027397,2]
[408712455,1774164664974,-1440.814673,0.00027397,2]
[408712456,1774164664984,-1440.814673,0.00027397,2]
[408712457,1774164664995,-1440.814673,0.00027397,2]
[408712458,1774164665005,-1440.814673,0.00027397,2]
[408712459,1774164665016,-1440.814673,0.00027397,2]
[408712460,1774164665026,-1440.814673,0.00027397,2]
[408712461,1774164665037,-1440.81467,0.00027397,2]
[408712462,1774164665050,-151.0,0.00027397,2]
[408712463,1774164665060,-151.0,0.00027397,2]
[408712464,1774164665069,-151.0,0.00027397,2]
[408712465,1774164665079,-151.0,0.00027397,2]
[408712466,1774164665089,-151.0,0.00027397,2]
[408712467,1774164665098,-151.0,0.00027397,2]
[408712468,1774164665107,-151.0,0.00027397,2]
[408712469,1774164665117,-151.0,0.00027397,2]
[408712470,1774164665132,-151.0,0.00027397,2]
[408712471,1774164665151,-151.0,0.00027397,2]
[408712472,1774164665171,-151.0,0.00027397,2]
[408712473,1774164665191,-151.0,0.00027397,2]
[408712474,1774164665207,-151.0,0.00027397,2]
[408712475,1774164665225,-151.0,0.00027397,2]
[408712476,1774164665242,-151.0,0.00027397,2]
[408712477,1774164665261,-151.0,0.00027397,2]
[408712478,1774164665278,-151.0,0.00027397,2]
[408712479,1774164665296,-293.388622,0.00027397,2]
[408712480,1774164665313,-151.0,0.00027397,2]
[408712481,1774164665331,-151.0,0.00027397,2]
[408712482,1774164665345,-151.0,0.00027397,2]
[408712483,1774164665361,-151.0,0.00027397,2]
[408712484,1774164665377,-151.0,0.00027397,2]
[408712485,1774164665392,-151.0,0.00027397,2]
[408712486,1774164665408,-151.0,0.00027397,2]
[408712487,1774164665422,-151.0,0.00027397,2]
[408712488,1774164665437,-151.0,0.00027397,2]
[408712489,1774164665451,-151.0,0.00027397,2]
[408712490,1774164665466,-151.0,0.00027397,2]
[408712491,1774164665482,-151.0,0.00027397,2]
[408712492,1774164665496,-151.0,0.00027397,2]
[408712493,1774164665511,-151.0,0.00027397,2]
[408712494,1774164665526,-151.0,0.00027397,2]
[408712495,1774164665541,-152.660245,0.00027397,2]
[408712496,1774164665556,-912.483894,0.00027397,2]
[408712497,1774164665570,-912.483894,0.00027397,2]
[408712498,1774164665585,-912.483894,0.00027397,2]
[408712499,1774164665599,-912.483894,0.00027397,2]
[408712500,1774164665613,-912.483894,0.00027397,2]
[408712501,1774164665628,-912.483894,0.00027397,2]
[408712502,1774164665642,-912.483894,0.00027397,2]
[408712503,1774164665656,-912.483894,0.00027397,2]
[408712504,1774164665671,-912.483894,0.00027397,2]
[408712505,1774164665685,-912.483894,0.00027397,2]
[408712506,1774164665699,-912.483894,0.00027397,2]
[408712507,1774164665714,-912.483894,0.00027397,2]
[408712508,1774164665729,-912.483894,0.00027397,2]
[408712509,1774164665744,-912.483894,0.00027397,2]
[408712510,1774164665759,-912.483894,0.00027397,2]
[408712511,1774164665774,-912.483894,0.00027397,2]
[408712512,1774164665789,-912.483894,0.00027397,2]
[408712513,1774164665803,-912.483894,0.00027397,2]
[408712514,1774164665818,-912.483894,0.00027397,2]
[408712515,1774164665832,-912.483902,0.00027397,2]
[408712516,1774164665847,-152.458539,0.00027397,2]
[408712517,1774164665862,-410.031489,0.00027397,2]
[408712518,1774164665877,-410.031489,0.00027397,2]
[408712519,1774164665892,-410.031489,0.00027397,2]
[408712520,1774164665906,-410.031489,0.00027397,2]
[408712521,1774164665921,-410.031489,0.00027397,2]
[408712522,1774164665934,-410.031489,0.00027397,2]
[408712523,1774164665949,-410.031489,0.00027397,2]
[408712524,1774164665964,-410.031489,0.00027397,2]
[408712525,1774164665978,-410.031489,0.00027397,2]
[408712526,1774164665993,-410.031489,0.00027397,2]
[408712527,1774164666007,-410.031489,0.00027397,2]
[408712528,1774164666022,-410.031489,0.00027397,2]
[408712529,1774164666037,-410.031489,0.00027397,2]
[408712530,1774164666052,-410.031489,0.00027397,2]
[408712531,1774164666068,-410.031489,0.00027397,2]
[408712532,1774164666084,-410.031489,0.00027397,2]
[408712533,1774164666093,-410.031489,0.00027397,2]
[408712534,1774164666102,-410.031489,0.00027397,2]
[408712535,1774164666241,-410.031489,0.00027397,2]
[408712536,1774164666263,-410.03149,0.00027397,2]
[408712537,1774164666274,-33557.43,0.00027397,10]
[408712538,1774164666283,-167.0,0.00027397,2]
[408712539,1774164666292,-167.0,0.00027397,2]
[408712540,1774164666302,-167.0,0.00027397,2]
[408712541,1774164666311,-167.0,0.00027397,2]
[408712542,1774164666321,-167.0,0.00027397,2]
[408712543,1774164666330,-167.0,0.00027397,2]
[408712544,1774164666339,-167.0,0.00027397,2]
[408712545,1774164666348,-181.90311346,0.00027397,2]
[408712546,1774164666358,-202.59351306,0.000275,2]
[408712547,1774164666368,-553.35373016,0.000275,2]
[408712548,1774164666378,-150.0,0.00027661,2]
[408712549,1774164666387,-1261.0,0.00027661,2]
[408712550,1774164666402,-1215.0,0.00027661,2]
[408712551,1774164666418,-924.0,0.00027661,2]
[408712552,1774164666427,-700.0,0.00027782,21]
[408712553,1774164666439,-275.42,0.00027972,2]
[408712554,1774164666448,-817.1,0.00027972,2]
[408712555,1774164666457,-817.1,0.00027972,2]
[408712556,1774164666467,-817.1,0.00027972,2]
[408712557,1774164666477,-544.73,0.00027972,2]
[408712558,1774164666487,-272.36,0.00027972,2]
[408712559,1774164666497,-544.73,0.00027972,2]
[408712560,1774164666507,-544.73,0.00027972,2]
[408712561,1774164666516,-544.73,0.00027972,2]
[408712562,1774164666525,-272.36,0.00027972,2]
[408712563,1774164666534,-151.0,0.00028,2]
[408712564,1774164666544,-702.2517793,0.00028,14]
[408712565,1774164666553,-5000.0,0.00028,7]
[408712566,1774164666562,-2403.2155048,0.00028,2]
[408712567,1774164666572,-554.530654,0.00028,120]
[408712568,1774164666581,-51196.45507891,0.00028,2]
[408712569,1774164666590,-2703.4848658,0.00028,60]
[408712570,1774164666599,-160.0,0.00028,2]
[408712571,1774164666608,-161.0,0.00028,2]
[408712572,1774164666618,-700.0,0.00028056,21]
[408712573,1774164666627,-171.26,0.00028178,2]
[408712574,1774164666637,-5280.4114,0.000284,2]
[408712575,1774164666647,-150.0,0.00028544,2]
[408712576,1774164666657,-1319.67844922,0.00028646,15]
[408712577,1774164666666,-497.88707534,0.00028767,2]
[408712578,1774164666675,-2000.0,0.00028767,2]
[408712579,1774164666685,-2358.65,0.000288,7]
[408712580,1774164666694,-3304.38,0.000288,7]
[408712581,1774164666704,-824.87,0.00028839,2]
[408712582,1774164666713,-1460.56,0.000289,7]
[408712583,1774164666723,-7279.16,0.000289,2]
[408712584,1774164666732,-371180.3,0.000289,7]
[408712585,1774164666742,-600.0,0.00029,2]
[408712586,1774164666752,-505.84884145,0.00029,2]
[408712587,1774164666762,-160.56,0.00029072,2]
[408712588,1774164666771,-600.0,0.00029152,21]
[408712589,1774164666781,-211.46,0.000292,7]
[408712590,1774164666790,-1253.33,0.000292,7]
[408712591,1774164666799,-700.0,0.00029426,21]
[408712592,1774164666808,-273.07,0.00029668,2]
[408712593,1774164666818,-700.0,0.000297,21]
[408712594,1774164666827,-6944.4073,0.000298,2]
[408712595,1774164666836,-79481.97000827,0.000299,2]
[408712596,1774164666845,-3000.0,0.000299,120]
[408712597,1774164666855,-150.0,0.00029971,2]
[408712598,1774164666865,-239.05448876,0.0002999,2]
[408712599,1774164666874,-250.06318313,0.0003,3]
[408712600,1774164666883,-151.0,0.0003,2]
[408712601,1774164666892,-339.42519009,0.0003,7]
[408712602,1774164666902,-339.42519009,0.0003,7]
[408712603,1774164666912,-151.0,0.0003,2]
[408712604,1774164666923,-181.0,0.0003,120]
[408712605,1774164666933,-181.0,0.0003,120]
[408712606,1774164666943,-181.0,0.0003,120]
[408712607,1774164666952,-181.0,0.0003,120]
[408712608,1774164666961,-181.0,0.0003,120]
[408712609,1774164666971,-202.71,0.0003,11]
[408712610,1774164666983,-500.0,0.0003,120]
[408712611,1774164666992,-1000.0,0.0003,120]
[408712612,1774164667002,-1000.0,0.0003,120]
[408712613,1774164667012,-1000.0,0.0003,120]
[408712614,1774164667022,-1000.0,0.0003,120]
[408712615,1774164667032,-979.16666667,0.0003,7]
[408712616,1774164667042,-191.31,0.0003,22]
[408712617,1774164667052,-1568.19609446,0.0003,2]
[408712618,1774164667062,-18589.51348792,0.0003,2]
[408712619,1774164667071,-9500.0,0.0003,3]
[408712620,1774164667082,-20019.4031953,0.0003,2]
[408712621,1774164667091,-2000.0,0.0003,3]
[408712622,1774164667102,-321.77024036,0.0003,2]
[408712623,1774164667111,-1831.7469205,0.0003,2]
[408712624,1774164667121,-580.68588821,0.0003,4]
[408712625,1774164667130,-164.29542047,0.0003,2]
[408712626,1774164667140,-1004.92783742,0.0003,2]
[408712627,1774164667151,-1345.0,0.00030012,2]
[408712628,1774164667161,-2466.0,0.00030012,2]
[408712629,1774164667171,-621.0,0.00030012,2]
[408712630,1774164667181,-178.66416582,0.00030061,120]
[408712631,1774164667191,-1082.08234612,0.0003013,2]
[408712632,1774164667200,-13958.79117183,0.0003013,2]
[408712633,1774164667209,-639.0274692,0.0003013,2]
[408712634,1774164667218,-203.29056359,0.0003013,2]
[408712635,1774164667227,-7791.26591873,0.0003013,2]
[408712636,1774164667236,-250.0,0.00030137,2]
[408712637,1774164667246,-250.0,0.00030137,2]
[408712638,1774164667256,-250.0,0.00030137,2]
[408712639,1774164667265,-250.0,0.00030137,2]
[408712640,1774164667275,-250.0,0.00030137,2]
[408712641,1774164667285,-250.0,0.00030137,2]
[408712642,1774164667295,-250.0,0.00030137,2]
[408712643,1774164667305,-250.0,0.00030137,2]
[408712644,1774164667314,-250.0,0.00030137,2]
[408712645,1774164667323,-251.17552973,0.00030137,2]
[408712646,1774164667333,-15656.26839714,0.000302,2]
[408712647,1774164667343,-2000.0,0.000303,2]
[408712648,1774164667353,-150.0,0.00030506,30]
[408712649,1774164667363,-198.0,0.00030506,30]
[408712650,1774164667372,-402.84,0.000306,120]
[408712651,1774164667381,-150.0,0.00030661,2]
[408712652,1774164667392,-1261.0,0.00030661,2]
[408712653,1774164667403,-1215.0,0.00030661,2]
[408712654,1774164667413,-924.0,0.00030661,2]
[408712655,1774164667424,-600.0,0.00030796,21]
[408712656,1774164667434,-1621.60414347,0.0003084,2]
[408712657,1774164667444,-650.0,0.00031,2]
[408712658,1774164667455,-51965.45879172,0.00031,2]
[408712659,1774164667466,-979.16666667,0.00031,120]
[408712660,1774164667476,-824.87,0.00031002,2]
[408712661,1774164667485,-700.0,0.0003107,21]
[408712662,1774164667496,-371180.3,0.000311,7]
[408712663,1774164667506,-171.26,0.00031178,2]
[408712664,1774164667516,-9132.7719,0.000312,2]
[408712665,1774164667527,-267.0,0.00031342,30]
[408712666,1774164667536,-700.0,0.00031344,21]
[408712667,1774164667546,-600.0,0.000314,120]
[408712668,1774164667556,-1460.56,0.000314,7]
[408712669,1774164667566,-2358.65,0.000314,7]
[408712670,1774164667575,-19958.8283424,0.0003143,4]
[408712671,1774164667585,-150.0,0.0003147,2]
[408712672,1774164667595,-198.95643928,0.000315,2]
[408712673,1774164667604,-150.0,0.000315,2]
[408712674,1774164667614,-200.0,0.00031507,120]
[408712675,1774164667623,-260.0,0.00031507,120]